fUSD/lending_fUSD_20250505
["ID","MTS","AMOUNT","RATE_DAILY","PERIOD"]
[359926600,1746429040024,-500.0,0.00019894,2]
[359926603,1746429040033,-500.0,0.00019894,2]
[359926606,1746429040042,-500.0,0.00019894,2]
[359926608,1746429040052,-396.94893044,0.00019894,2]
[359926612,1746429040065,-53.05106956,0.00019894,2]
[359926615,1746429040074,-500.0,0.00019894,2]
[359926618,1746429040085,-113.31574854,0.00019894,2]
[359926623,1746429040106,-386.68425146,0.00019894,2]
[359926626,1746429040115,-333.35587044,0.00019895,2]
[359926629,1746429040124,-188.7598781,0.00019895,2]
[359926633,1746429040136,-1373.21639863,0.00019895,2]
[359926940,1746429042703,-280.24741604,0.00019895,2]
[359926945,1746429042741,-1012.97035628,0.00019895,2]
[359926948,1746429042753,-3330.03678,0.00019895,2]
[359927237,1746429045611,-493.092,0.00019895,2]
[359927239,1746429045623,-669.052,0.00019895,2]
[359927241,1746429045635,-535.648,0.00019895,2]
[359927244,1746429045648,-4761.87969294,0.00019895,2]
[359927258,1746429045773,-2271.0910016,0.00019895,2]
[359927404,1746429218434,1000.0,0.00018954,2]
[359927405,1746429415608,168.31774627,0.000179,2]
[359927406,1746429416603,168.31774625,0.000179,2]
[359927407,1746429417791,168.31774625,0.000179,2]
[359927408,1746429478096,250.0,0.00017,2]
[359927409,1746429479299,300.0,0.00019,2]
[359927423,1746429698123,320.78,0.00017048,2]
[359927424,1746429698329,320.78,0.00019312,2]
[359927425,1746429706557,3372.0,0.0003,30]
[359927426,1746429707424,154.0,0.00019501,2]
[359927427,1746429916140,13725.23,0.00018924,2]
[359927428,1746429957529,500.0,0.00018922,3]
[359927463,1746430072923,-267.28634013,0.000196,2]
[359927529,1746430181153,-607.6079,0.000196,2]
[359927550,1746430231840,-146.10575987,0.000196,2]
[359927551,1746430231850,-200.0,0.00019605,2]
[359927552,1746430231859,-1033.46875903,0.0001961,2]
[359927553,1746430231869,-200.0,0.00019662,2]
[359927554,1746430231878,-300.0,0.00019699,2]
[359927555,1746430231887,-80.98400598,0.00019699,2]
[359927600,1746430239817,-1119.01599402,0.00019699,2]
[359927601,1746430239827,-151.0,0.000197,2]
[359927602,1746430239836,-11236.11649769,0.000197,2]
[359927603,1746430239928,-0.00525923,0.000197,2]
[359927604,1746430239939,-474.56129661,0.000197,2]
[359927616,1746430242693,-11489.05373958,0.000197,2]
[359927617,1746430242703,-163.77008,0.000197,23]
[359927618,1746430242713,-11727.16303368,0.0001975,2]
[359927619,1746430242723,-217.1177524,0.000198,2]
[359927620,1746430242732,-500.0,0.00019873,2]
[359927621,1746430242742,-207.4,0.00019879,2]
[359927622,1746430242751,-154.24,0.00019882,2]
[359927623,1746430242761,-233.34910938,0.00019891,2]
[359927624,1746430242770,-500.0,0.00019891,2]
[359927625,1746430242780,-500.0,0.00019891,2]
[359927626,1746430242789,-500.0,0.00019891,2]
[359927627,1746430242799,-500.0,0.00019891,2]
[359927628,1746430242808,-500.0,0.00019891,2]
[359927629,1746430242818,-500.0,0.00019891,2]
[359927630,1746430242828,-500.0,0.00019891,2]
[359927631,1746430242838,-609.73664792,0.00019891,2]
[359927632,1746430242847,-456.63740532,0.00019891,2]
[359927633,1746430242857,-40056.57638731,0.00019892,2]
[359927634,1746430242868,-324.59999999,0.00019892,2]
[359927635,1746430242880,-500.0,0.00019892,2]
[359927636,1746430242947,-3180.43765387,0.00019892,2]
[359927637,1746430242988,-4050.39614497,0.00019892,2]
[359927864,1746430245582,-27475.77840572,0.00019892,2]
[359927866,1746430245592,-161.33345751,0.00019892,2]
[359927868,1746430245602,-233.3491093,0.00019892,2]
[359927870,1746430245611,-113238.3958,0.00019892,2]
[359927872,1746430245623,-233.3491093,0.00019893,2]
[359927874,1746430245632,-233.3491093,0.00019894,2]
[359927876,1746430245642,-233.3491093,0.00019895,2]
[359927878,1746430245653,-233.3491093,0.00019896,2]
[359927880,1746430245664,-233.3491093,0.00019897,2]
[359927882,1746430245673,-151.0,0.00019898,2]
[359927884,1746430245683,-233.3491093,0.00019898,2]
[359927886,1746430245692,-233.3491093,0.00019899,2]
[359927888,1746430245701,-169.0028494,0.000199,2]
[359927890,1746430245711,-721.84758713,0.000199,2]
[359927892,1746430245720,-233.3491093,0.000199,2]
[359927894,1746430245732,-150.0,0.00019905,2]
[359927896,1746430245742,-300.0,0.00019918,7]
[359927898,1746430245752,-450.0,0.00019925,2]
[359927900,1746430245763,-450.0,0.00019925,2]
[359927902,1746430245772,-450.0,0.00019925,2]
[359927904,1746430245781,-450.0,0.00019925,2]
[359927906,1746430245791,-450.0,0.00019925,2]
[359927908,1746430245800,-450.0,0.00019925,2]
[359927910,1746430245810,-450.0,0.00019925,2]
[359927912,1746430245820,-450.0,0.00019925,2]
[359927914,1746430245830,-450.0,0.00019925,2]
[359927916,1746430245839,-450.0,0.00019925,2]
[359927918,1746430245849,-467.09684521,0.00019925,2]
[359927920,1746430245858,-511.16135072,0.00019925,2]
[359927922,1746430245867,-450.0,0.00019925,2]
[359927924,1746430245877,-462.38149689,0.00019925,2]
[359927926,1746430245886,-261.00045563,0.00019925,2]
[359927928,1746430245895,-453.17534139,0.00019925,2]
[359927930,1746430245905,-450.0,0.00019925,2]
[359927932,1746430245914,-450.0,0.00019925,2]
[359927935,1746430245923,-450.0,0.00019925,2]
[359927936,1746430245933,-366.97997756,0.00019925,2]
[359927938,1746430245944,-450.0,0.00019925,2]
[359927940,1746430245954,-450.0,0.00019925,2]
[359927942,1746430245963,-5804.68440227,0.00019926,2]
[359927944,1746430245972,-500.0,0.00019973,2]
[359927946,1746430245983,-500.0,0.00019973,2]
[359927948,1746430245992,-500.0,0.00019973,2]
[359927950,1746430246001,-487.373,0.00019973,2]
[359927952,1746430246010,-353.06,0.00019979,2]
[359927954,1746430246019,-364.09988253,0.0001998,2]
[359927956,1746430246029,-249.0344487,0.00019986,2]
[359927958,1746430246039,-450.0,0.00019989,2]
[359927960,1746430246049,-450.0,0.00019989,2]
[359927962,1746430246059,-450.0,0.00019989,2]
[359927964,1746430246068,-450.0,0.00019989,2]
[359927966,1746430246077,-450.0,0.00019989,2]
[359927968,1746430246086,-450.0,0.00019989,2]
[359927970,1746430246096,-518.03310144,0.00019989,2]
[359927994,1746430246313,-450.0,0.00019989,2]
[359927996,1746430246323,-468.66777978,0.00019989,2]
[359927998,1746430246332,-450.0,0.00019989,2]
[359928000,1746430246341,-450.0,0.00019989,2]
[359928002,1746430246350,-547.68097922,0.00019989,2]
[359928004,1746430246360,-450.0,0.00019989,2]
[359928006,1746430246369,-450.0,0.00019989,2]
[359928008,1746430246378,-450.0,0.00019989,2]
[359928010,1746430246388,-450.0,0.00019989,2]
[359928012,1746430246397,-450.0,0.00019989,2]
[359928014,1746430246407,-450.0,0.00019989,2]
[359928016,1746430246416,-450.0,0.00019989,2]
[359928018,1746430246425,-525.60155823,0.00019989,2]
[359928020,1746430246434,-100.95473222,0.00019989,2]
[359928700,1746430281407,1000.0,0.00019241,2]
[359928703,1746430466809,389.18652098,0.00018959,2]
[359928704,1746430676890,288.7,0.00017003,2]
[359928705,1746430677000,288.7,0.00019266,2]
[359928711,1746431044828,7949.25230137,0.0001889,2]
[359928712,1746431044852,9950.74769863,0.0001889,2]
[359928734,1746431130635,2098.32718816,0.00018,2]
[359928765,1746431302567,250.0,0.00017,2]
[359928767,1746431303654,300.0,0.00019,2]
[359928825,1746431431985,-194.57476,0.00019626,2]
[359928826,1746431431995,-221.23682881,0.00019725,2]
[359928827,1746431432005,-207.4,0.00019727,2]
[359928828,1746431432014,-151.0,0.00019733,2]
[359928829,1746431432024,-150.0,0.00019735,2]
[359928830,1746431432033,-150.0,0.00019739,2]
[359928831,1746431432043,-150.0,0.00019739,2]
[359928832,1746431432052,-150.0,0.00019779,2]
[359928833,1746431432061,-180.35823663,0.00019808,2]
[359928834,1746431432070,-164.85096544,0.00019808,2]
[359928835,1746431432080,-150.0,0.00019817,2]
[359928836,1746431432089,-150.0,0.00019818,2]
[359928837,1746431432098,-285.44856648,0.00019825,2]
[359928838,1746431432108,-285.4485664,0.00019833,2]
[359928839,1746431432117,-150.0,0.0001984,2]
[359928840,1746431432126,-285.4485664,0.00019842,2]
[359928841,1746431432135,-150.0,0.0001985,2]
[359928842,1746431432144,-285.4485664,0.0001985,2]
[359928843,1746431432154,-285.4485664,0.00019858,2]
[359928844,1746431432163,-285.4485664,0.00019867,2]
[359928845,1746431432173,-150.0,0.00019867,2]
[359928846,1746431432182,-150.0,0.00019873,2]
[359928847,1746431432190,-285.4485664,0.00019875,2]
[359928848,1746431432199,-151.0,0.00019878,2]
[359928849,1746431432208,-668.65185757,0.00019878,2]
[359928850,1746431432218,-285.4485664,0.00019883,2]
[359928851,1746431432227,-159.40114631,0.00019889,2]
[359928853,1746431432237,-1200.0,0.00019889,2]
[359928855,1746431432246,-1393.92983955,0.0001989,2]
[359928857,1746431432256,-167.28663962,0.0001989,2]
[359928859,1746431432265,-1393.92983948,0.00019891,2]
[359928861,1746431432274,-285.4485664,0.00019892,2]
[359928863,1746431432283,-1393.92983948,0.00019892,2]
[359928864,1746431432292,-1393.92983948,0.00019893,2]
[359928865,1746431432301,-1393.92983948,0.00019894,2]
[359928866,1746431432310,-1393.92983948,0.00019896,2]
[359928867,1746431432319,-188.0,0.00019896,2]
[359928868,1746431432330,-161.07157221,0.00019896,2]
[359928869,1746431432339,-1393.92983948,0.00019897,2]
[359928870,1746431432348,-1393.92983948,0.00019898,2]
[359928871,1746431432357,-1393.92983948,0.00019899,2]
[359928872,1746431432366,-1533.32770897,0.000199,2]
[359928873,1746431432375,-1393.92983948,0.000199,2]
[359928874,1746431432384,-285.4485664,0.000199,2]
[359928875,1746431432393,-150.0,0.00019914,2]
[359928876,1746431432402,-842.75834002,0.00019915,2]
[359928877,1746431432411,-223.56637383,0.00019918,7]
[359928878,1746431432423,-76.43362617,0.00019918,7]
[359928879,1746431432433,-299.7446626,0.00019924,2]
[359928880,1746431432442,-150.0,0.00019924,2]
[359928881,1746431432451,-500.0,0.00019924,2]
[359928882,1746431432460,-500.0,0.00019924,2]
[359928883,1746431432469,-105.78433389,0.00019924,2]
[359928894,1746431437825,-394.21566611,0.00019924,2]
[359928895,1746431437835,-500.0,0.00019924,2]
[359928896,1746431437844,-500.0,0.00019924,2]
[359928897,1746431437854,-292.21289457,0.00019924,2]
[359928899,1746431437864,-500.0,0.00019924,2]
[359928900,1746431437874,-500.0,0.00019924,2]
[359928901,1746431437883,-500.0,0.00019924,2]
[359928902,1746431437893,-450.0,0.00019925,2]
[359928903,1746431437903,-450.0,0.00019925,2]
[359928904,1746431437912,-481.77396082,0.00019925,2]
[359928905,1746431437922,-323.34591747,0.00019925,2]
[359928906,1746431437969,-126.65408253,0.00019925,2]
[359928907,1746431437979,-450.0,0.00019925,2]
[359928908,1746431437988,-450.0,0.00019925,2]
[359928909,1746431437998,-450.0,0.00019925,2]
[359928910,1746431438007,-450.0,0.00019925,2]
[359928911,1746431438016,-473.5721056,0.00019925,2]
[359928912,1746431438026,-483.44313905,0.00019925,2]
[359928913,1746431438036,-450.0,0.00019925,2]
[359928914,1746431438046,-509.04773342,0.00019925,2]
[359928915,1746431438055,-476.27313817,0.00019925,2]
[359928916,1746431438065,-526.31390743,0.00019925,2]
[359928917,1746431438075,-450.0,0.00019925,2]
[359928918,1746431438085,-450.0,0.00019925,2]
[359928919,1746431438095,-450.0,0.00019925,2]
[359928920,1746431438105,-450.0,0.00019925,2]
[359928921,1746431438114,-450.0,0.00019925,2]
[359928922,1746431438123,-450.0,0.00019925,2]
[359928923,1746431438133,-450.0,0.00019925,2]
[359928924,1746431438144,-450.0,0.00019925,2]
[359928925,1746431438154,-450.0,0.00019925,2]
[359928926,1746431438163,-450.0,0.00019925,2]
[359928928,1746431438173,-450.0,0.00019925,2]
[359928930,1746431438182,-539.26885921,0.00019925,2]
[359928932,1746431438191,-450.0,0.00019925,2]
[359928934,1746431438201,-450.0,0.00019925,2]
[359928935,1746431438210,-479.93286349,0.00019925,2]
[359928937,1746431438220,-450.0,0.00019925,2]
[359928939,1746431438229,-282.31015896,0.00019925,2]
[359928941,1746431438241,-167.68984104,0.00019925,2]
[359928943,1746431438251,-450.0,0.00019925,2]
[359928944,1746431438260,-450.0,0.00019925,2]
[359928945,1746431438269,-450.0,0.00019925,2]
[359928946,1746431438279,-450.0,0.00019925,2]
[359928947,1746431438288,-450.0,0.00019925,2]
[359928948,1746431438297,-467.36409349,0.00019925,2]
[359928949,1746431438306,-450.0,0.00019925,2]
[359928950,1746431438316,-450.0,0.00019925,2]
[359928951,1746431438325,-450.0,0.00019925,2]
[359928952,1746431438338,-450.0,0.00019925,2]
[359928953,1746431438348,-450.0,0.00019925,2]
[359928954,1746431438357,-450.0,0.00019925,2]
[359928955,1746431438366,-220.55746632,0.00019925,2]
[359928956,1746431438375,-450.0,0.00019925,2]
[359928957,1746431438384,-457.39619426,0.00019925,2]
[359928958,1746431438393,-450.0,0.00019925,2]
[359928959,1746431438403,-476.4633383,0.00019925,2]
[359928960,1746431438414,-450.0,0.00019925,2]
[359928961,1746431438424,-450.0,0.00019925,2]
[359928962,1746431438433,-388.30674961,0.00019925,2]
[359928963,1746431438442,-450.0,0.00019925,2]
[359928964,1746431438452,-450.0,0.00019925,2]
[359928965,1746431438461,-450.0,0.00019925,2]
[359928966,1746431438470,-486.41,0.00019925,2]
[359928967,1746431438480,-484.82103318,0.00019925,2]
[359928968,1746431438489,-450.0,0.00019925,2]
[359928969,1746431438499,-21.66808167,0.00019925,2]
[359928971,1746431438511,-452.59023805,0.00019925,2]
[359928973,1746431438520,-502.24979084,0.00019925,2]
[359928975,1746431438530,-450.0,0.00019925,2]
[359928977,1746431438539,-450.0,0.00019925,2]
[359928979,1746431438548,-450.0,0.00019925,2]
[359928981,1746431438558,-500.0,0.00019925,2]
[359928983,1746431438567,-450.0,0.00019925,2]
[359928985,1746431438576,-450.0,0.00019925,2]
[359928987,1746431438585,-450.0,0.00019925,2]
[359928989,1746431438594,-450.0,0.00019925,2]
[359928991,1746431438603,-462.41357313,0.00019925,2]
[359928993,1746431438612,-512.49471322,0.00019925,2]
[359928995,1746431438621,-450.0,0.00019925,2]
[359928997,1746431438631,-450.0,0.00019925,2]
[359928999,1746431438640,-450.0,0.00019925,2]
[359929001,1746431438649,-450.0,0.00019925,2]
[359929003,1746431438658,-453.4022161,0.00019925,2]
[359929005,1746431438667,-450.0,0.00019925,2]
[359929007,1746431438676,-450.0,0.00019925,2]
[359929008,1746431438685,-450.0,0.00019925,2]
[359929010,1746431438694,-450.0,0.00019925,2]
[359929012,1746431438704,-450.0,0.00019925,2]
[359929014,1746431438712,-450.0,0.00019925,2]
[359929016,1746431438722,-450.0,0.00019925,2]
[359929018,1746431438731,-500.0,0.00019925,2]
[359929021,1746431438741,-450.0,0.00019925,2]
[359929023,1746431438750,-450.0,0.00019925,2]
[359929024,1746431438759,-546.37507614,0.00019925,2]
[359929026,1746431438768,-450.0,0.00019925,2]
[359929028,1746431438779,-450.0,0.00019925,2]
[359929031,1746431438788,-450.0,0.00019925,2]
[359929033,1746431438798,-450.0,0.00019925,2]
[359929035,1746431438807,-488.09756898,0.00019925,2]
[359929036,1746431438816,-479.20537631,0.00019925,2]
[359929038,1746431438825,-450.0,0.00019925,2]
[359929040,1746431438834,-428.02297603,0.00019925,2]
[359929043,1746431438846,-21.97702397,0.00019925,2]
[359929045,1746431438856,-450.0,0.00019925,2]
[359929047,1746431438866,-450.0,0.00019925,2]
[359929049,1746431438876,-450.0,0.00019925,2]
[359929051,1746431438885,-450.0,0.00019925,2]
[359929053,1746431438894,-474.95294266,0.00019925,2]
[359929055,1746431438903,-450.0,0.00019925,2]
[359929057,1746431438913,-561.37833345,0.00019925,2]
[359929059,1746431438922,-450.0,0.00019925,2]
[359929061,1746431438931,-450.0,0.00019925,2]
[359929063,1746431438941,-450.0,0.00019925,2]
[359929065,1746431438950,-450.0,0.00019925,2]
[359929066,1746431438960,-450.0,0.00019925,2]
[359929068,1746431438969,-311.08296517,0.00019925,2]
[359929072,1746431438995,-138.91703483,0.00019925,2]
[359929074,1746431439004,-534.35076385,0.00019925,2]
[359929076,1746431439013,-450.0,0.00019925,2]
[359929078,1746431439024,-352.25322535,0.00019925,2]
[359929080,1746431439033,-450.0,0.00019925,2]
[359929082,1746431439042,-500.0,0.00019925,2]
[359929084,1746431439051,-450.0,0.00019925,2]
[359929086,1746431439061,-450.0,0.00019925,2]
[359929088,1746431439070,-450.0,0.00019925,2]
[359929090,1746431439079,-450.0,0.00019925,2]
[359929092,1746431439088,-450.0,0.00019925,2]
[359929094,1746431439097,-450.0,0.00019925,2]
[359929096,1746431439107,-500.0,0.00019925,2]
[359929098,1746431439116,-450.0,0.00019925,2]
[359929100,1746431439125,-450.0,0.00019925,2]
[359929102,1746431439135,-450.0,0.00019925,2]
[359929104,1746431439144,-450.0,0.00019925,2]
[359929106,1746431439153,-450.0,0.00019925,2]
[359929108,1746431439163,-450.0,0.00019925,2]
[359929110,1746431439172,-450.0,0.00019925,2]
[359929112,1746431439181,-451.44431488,0.00019925,2]
[359929114,1746431439191,-450.0,0.00019925,2]
[359929116,1746431439200,-450.0,0.00019925,2]
[359929118,1746431439209,-450.0,0.00019925,2]
[359929119,1746431439218,-450.0,0.00019925,2]
[359929120,1746431439227,-450.0,0.00019925,2]
[359929121,1746431439236,-450.0,0.00019925,2]
[359929122,1746431439245,-450.0,0.00019925,2]
[359929123,1746431439255,-450.0,0.00019925,2]
[359929124,1746431439264,-450.0,0.00019925,2]
[359929125,1746431439273,-450.0,0.00019925,2]
[359929126,1746431439282,-450.0,0.00019925,2]
[359929127,1746431439292,-261.85649552,0.00019925,2]
[359929128,1746431439309,-60.76327569,0.00019925,2]
[359929129,1746431439318,-459.94221068,0.00019925,2]
[359929131,1746431439327,-450.0,0.00019925,2]
[359929132,1746431439339,-450.0,0.00019925,2]
[359929134,1746431439348,-450.0,0.00019925,2]
[359929136,1746431439357,-450.0,0.00019925,2]
[359929138,1746431439366,-450.0,0.00019925,2]
[359929140,1746431439376,-381.74618571,0.00019925,2]
[359929248,1746431440384,-68.25381429,0.00019925,2]
[359929250,1746431440393,-406.54050571,0.00019925,2]
[359929252,1746431440404,-43.45949429,0.00019925,2]
[359929254,1746431440413,-222.17764268,0.00019925,2]
[359929859,1746431446304,-227.82235732,0.00019925,2]
[359929861,1746431446314,-469.18819846,0.00019925,2]
[359929863,1746431446323,-450.0,0.00019925,2]
[359929864,1746431446334,-450.0,0.00019925,2]
[359929867,1746431446343,-450.0,0.00019925,2]
[359929868,1746431446353,-450.0,0.00019925,2]
[359929871,1746431446362,-450.0,0.00019925,2]
[359929872,1746431446372,-450.0,0.00019925,2]
[359929875,1746431446382,-450.0,0.00019925,2]
[359929877,1746431446391,-450.0,0.00019925,2]
[359929878,1746431446400,-450.0,0.00019925,2]
[359929880,1746431446410,-450.0,0.00019925,2]
[359929883,1746431446419,-450.0,0.00019925,2]
[359929885,1746431446428,-450.0,0.00019925,2]
[359929887,1746431446437,-450.0,0.00019925,2]
[359929889,1746431446446,-450.0,0.00019925,2]
[359929892,1746431446456,-450.0,0.00019925,2]
[359929894,1746431446465,-450.0,0.00019925,2]
[359929896,1746431446475,-450.0,0.00019925,2]
[359929898,1746431446484,-524.88031663,0.00019925,2]
[359929899,1746431446493,-450.0,0.00019925,2]
[359929902,1746431446503,-450.0,0.00019925,2]
[359929904,1746431446512,-450.0,0.00019925,2]
[359929905,1746431446522,-450.0,0.00019925,2]
[359929908,1746431446531,-450.0,0.00019925,2]
[359929909,1746431446541,-300.0,0.00019925,2]
[359929911,1746431446550,-450.0,0.00019925,2]
[359929914,1746431446560,-450.0,0.00019925,2]
[359929915,1746431446569,-450.0,0.00019925,2]
[359929917,1746431446579,-450.0,0.00019925,2]
[359929920,1746431446589,-452.35,0.00019925,2]
[359929922,1746431446598,-450.0,0.00019925,2]
[359929924,1746431446607,-450.0,0.00019925,2]
[359929925,1746431446616,-450.0,0.00019925,2]
[359929927,1746431446626,-450.0,0.00019925,2]
[359929939,1746431446797,-450.0,0.00019925,2]
[359929941,1746431446807,-384.03837964,0.00019925,2]
[359929943,1746431446817,-450.0,0.00019925,2]
[359929945,1746431446827,-450.0,0.00019925,2]
[359929947,1746431446837,-450.0,0.00019925,2]
[359929949,1746431446847,-450.0,0.00019925,2]
[359929951,1746431446856,-450.0,0.00019925,2]
[359929953,1746431446866,-450.0,0.00019925,2]
[359929955,1746431446876,-450.0,0.00019925,2]
[359929957,1746431446885,-450.0,0.00019925,2]
[359929959,1746431446895,-450.0,0.00019925,2]
[359929961,1746431446904,-450.0,0.00019925,2]
[359929963,1746431446914,-450.0,0.00019925,2]
[359929965,1746431446924,-450.0,0.00019925,2]
[359929967,1746431446933,-450.0,0.00019925,2]
[359929969,1746431446942,-450.0,0.00019925,2]
[359929971,1746431446952,-450.0,0.00019925,2]
[359929973,1746431446962,-450.0,0.00019925,2]
[359929975,1746431446971,-450.0,0.00019925,2]
[359929977,1746431446981,-495.03601912,0.00019925,2]
[359929979,1746431446991,-450.0,0.00019925,2]
[359929981,1746431447001,-450.0,0.00019925,2]
[359929983,1746431447011,-450.0,0.00019925,2]
[359929985,1746431447020,-324.92097776,0.00019925,2]
[359929987,1746431447031,-450.0,0.00019925,2]
[359929989,1746431447045,-450.0,0.00019925,2]
[359929991,1746431447055,-450.0,0.00019925,2]
[359929993,1746431447064,-450.0,0.00019925,2]
[359929995,1746431447073,-450.0,0.00019925,2]
[359929997,1746431447083,-450.0,0.00019925,2]
[359929999,1746431447092,-450.0,0.00019925,2]
[359930001,1746431447102,-450.0,0.00019925,2]
[359930003,1746431447112,-450.0,0.00019925,2]
[359930005,1746431447121,-413.43177762,0.00019925,2]
[359930007,1746431447131,-450.0,0.00019925,2]
[359930009,1746431447140,-450.0,0.00019925,2]
[359930011,1746431447149,-450.0,0.00019925,2]
[359930013,1746431447159,-450.0,0.00019925,2]
[359930015,1746431447168,-450.0,0.00019925,2]
[359930017,1746431447177,-526.99,0.00019925,2]
[359930019,1746431447187,-450.0,0.00019925,2]
[359930021,1746431447195,-450.0,0.00019925,2]
[359930023,1746431447204,-450.0,0.00019925,2]
[359930025,1746431447213,-450.0,0.00019925,2]
[359930027,1746431447222,-450.0,0.00019925,2]
[359930029,1746431447231,-450.0,0.00019925,2]
[359930031,1746431447241,-450.0,0.00019925,2]
[359930033,1746431447250,-450.0,0.00019925,2]
[359930035,1746431447259,-450.0,0.00019925,2]
[359930037,1746431447269,-450.0,0.00019925,2]
[359930039,1746431447278,-450.0,0.00019925,2]
[359930041,1746431447288,-450.0,0.00019925,2]
[359930043,1746431447297,-450.0,0.00019925,2]
[359930045,1746431447306,-463.22403769,0.00019925,2]
[359930047,1746431447316,-450.0,0.00019925,2]
[359930049,1746431447325,-450.0,0.00019925,2]
[359930051,1746431447339,-450.0,0.00019925,2]
[359930053,1746431447348,-450.0,0.00019925,2]
[359930055,1746431447357,-537.09129933,0.00019925,2]
[359930057,1746431447366,-201.51217013,0.00019925,2]
[359930059,1746431447376,-239.72,0.00019925,2]
[359930061,1746431447385,-403.35610147,0.00019973,2]
[359930063,1746431447395,-500.0,0.00019973,2]
[359930065,1746431447404,-503.89540493,0.00019973,2]
[359930067,1746431447414,-500.0,0.00019973,2]
[359930069,1746431447423,-209.14296397,0.00019973,2]
[359930071,1746431447432,-500.0,0.00019973,2]
[359930073,1746431447441,-501.69622859,0.00019973,2]
[359930075,1746431447450,-500.0,0.00019973,2]
[359930077,1746431447459,-500.0,0.00019973,2]
[359930079,1746431447468,-389.899,0.00019973,2]
[359930081,1746431447477,-220.99,0.00019979,2]
[359930083,1746431447486,-183.7044116,0.00019986,2]
[359930084,1746431447495,-450.0,0.00019988,2]
[359930086,1746431447505,-412.46,0.00019988,2]
[359930088,1746431447515,-450.0,0.00019988,2]
[359930090,1746431447524,-450.0,0.00019988,2]
[359930092,1746431447534,-450.0,0.00019988,2]
[359930094,1746431447543,-250.0,0.00019988,2]
[359930096,1746431447552,-450.0,0.00019988,2]
[359930098,1746431447561,-450.0,0.00019988,2]
[359930100,1746431447570,-468.58304017,0.00019988,2]
[359930102,1746431447580,-510.16,0.00019988,2]
[359930104,1746431447589,-450.0,0.00019988,2]
[359930106,1746431447599,-450.0,0.00019988,2]
[359930109,1746431447612,-450.0,0.00019988,2]
[359930111,1746431447621,-450.0,0.00019988,2]
[359930113,1746431447631,-450.0,0.00019988,2]
[359930115,1746431447641,-450.0,0.00019988,2]
[359930117,1746431447650,-450.0,0.00019988,2]
[359930119,1746431447659,-450.0,0.00019988,2]
[359930121,1746431447668,-514.70178836,0.00019988,2]
[359930123,1746431447678,-328.0385577,0.00019988,2]
[359930125,1746431447688,-450.0,0.00019988,2]
[359930127,1746431447697,-450.0,0.00019988,2]
[359930129,1746431447707,-500.0,0.00019988,2]
[359930131,1746431447717,-450.0,0.00019988,2]
[359930133,1746431447726,-450.0,0.00019988,2]
[359930135,1746431447736,-450.0,0.00019988,2]
[359930137,1746431447745,-450.0,0.00019988,2]
[359930139,1746431447755,-450.0,0.00019988,2]
[359930140,1746431447764,-450.0,0.00019988,2]
[359930143,1746431447774,-450.0,0.00019988,2]
[359930144,1746431447784,-472.73841482,0.00019988,2]
[359930146,1746431447793,-450.0,0.00019988,2]
[359930148,1746431447803,-450.0,0.00019988,2]
[359930151,1746431447812,-450.0,0.00019988,2]